bitfinex/quotes_BTCUSD_20241107
["timestamp","ask_amount","ask_price","bid_price","bid_amount"]
[1731010565428,8.55891273,76571.0,76570.0,0.00501936]
[1731010566911,8.55891273,76571.0,76570.0,0.01916254]
[1731010567115,8.55891273,76571.0,76570.0,0.00501936]
[1731010567329,8.55891273,76571.0,76570.0,0.10501936]
[1731010567543,8.55891273,76571.0,76570.0,0.00501936]
[1731010567745,8.55891273,76571.0,76570.0,0.00656415]
[1731010567954,8.55891273,76571.0,76570.0,0.02956415]
[1731010568165,8.55891273,76571.0,76570.0,0.1953161]
[1731010568367,8.47621273,76571.0,76570.0,0.9519371]
[1731010569401,8.47621273,76571.0,76539.0,0.1301397]
[1731010569402,0.005,76548.0,76539.0,0.1301397]
[1731010569614,0.005,76548.0,76540.0,0.17366858]
[1731010569834,0.0487,76550.0,76547.0,0.11590097]
[1731010570044,0.0487,76550.0,76548.0,0.00261247]
[1731010570480,0.0487,76550.0,76549.0,0.11590097]
[1731010570727,0.0487,76550.0,76548.0,0.11851344]
[1731010570957,0.0487,76550.0,76548.0,0.00261247]
[1731010571168,0.0759,76551.0,76549.0,0.0026122]
[1731010571597,0.045,76562.0,76549.0,0.0026122]
[1731010571813,0.0829,76561.0,76555.0,0.1]
[1731010572037,0.0829,76561.0,76556.0,0.00261207]
[1731010572271,0.0829,76561.0,76558.0,0.1]
[1731010572481,0.0829,76561.0,76559.0,0.13485308]
[1731010572692,0.0829,76561.0,76560.0,0.1]
[1731010572901,0.0829,76561.0,76560.0,0.23224102]
[1731010573327,0.08250554,76561.0,76560.0,0.23224102]
[1731010574834,8.43204773,76571.0,76560.0,0.23224102]
[1731010575044,8.43204773,76571.0,76554.0,0.31430627]
[1731010575045,8.43204773,76571.0,76570.0,0.23224102]
[1731010575934,8.43204773,76571.0,76570.0,0.29732986]
[1731010576178,8.43204773,76571.0,76570.0,0.41310054]
[1731010576386,8.43204773,76571.0,76570.0,0.3480117]
[1731010576593,8.43204773,76571.0,76570.0,0.41310054]
[1731010576802,8.43204773,76571.0,76570.0,0.41178344]
[1731010577010,8.43204773,76571.0,76570.0,0.29601276]
[1731010577262,8.43204773,76571.0,76570.0,0.23092392]
[1731010577691,8.43204773,76571.0,76570.0,0.29601276]
[1731010579582,8.43204773,76571.0,76570.0,0.23092392]
[1731010581580,8.4204551,76571.0,76570.0,0.23092392]
[1731010583062,8.4204551,76571.0,76570.0,0.28310692]
[1731010583359,8.41266654,76571.0,76570.0,0.28310692]
[1731010584701,8.41266654,76571.0,76570.0,0.23092392]
[1731010587536,8.41266654,76571.0,76570.0,0.13092392]
[1731010587786,8.54276654,76571.0,76570.0,1.13092392]
[1731010588196,8.53776654,76571.0,76570.0,1.13092392]
[1731010589631,8.53776654,76571.0,76570.0,1.23092392]
[1731010589863,8.49186654,76571.0,76570.0,1.23092392]
[1731010590067,8.49186654,76571.0,76570.0,1.25701392]
[1731010590273,8.41266654,76571.0,76570.0,1.25701392]
[1731010591569,8.41071676,76571.0,76570.0,1.25701392]
[1731010593888,8.53741676,76571.0,76570.0,1.25701392]
[1731010595986,8.49121676,76571.0,76570.0,1.25701392]
[1731010597119,8.41071676,76571.0,76570.0,1.25701392]
[1731010601329,8.41071676,76571.0,76570.0,1.32210276]
[1731010601963,8.41071676,76571.0,76570.0,1.34510276]
[1731010602133,7.75946251,76571.0,76570.0,1.34510276]
[1731010602339,7.70656966,76571.0,76570.0,1.34510276]
[1731010602944,7.70656966,76571.0,76570.0,1.25701392]
[1731010603510,7.70656966,76571.0,76570.0,1.32210276]
[1731010603703,7.70656966,76571.0,76570.0,1.25701392]
[1731010604323,7.70656966,76571.0,76570.0,1.15701392]
[1731010605523,7.70656966,76571.0,76570.0,1.25701392]
[1731010609543,7.70656966,76571.0,76570.0,1.42786477]
[1731010610885,7.70656966,76571.0,76570.0,1.25701392]
[1731010615412,7.70656966,76571.0,76570.0,1.25784892]
[1731010616020,7.78306966,76571.0,76570.0,1.25784892]
[1731010616529,7.78306966,76571.0,76570.0,1.38804269]
[1731010617675,7.78306966,76571.0,76570.0,1.38816543]
[1731010618736,7.70656966,76571.0,76570.0,1.25784892]
[1731010619395,7.70656966,76571.0,76570.0,1.32293776]
[1731010619607,7.70656966,76571.0,76570.0,1.25784892]
[1731010620224,7.66607967,76571.0,76570.0,1.25784892]
[1731010620654,7.42111967,76571.0,76570.0,1.25784892]
[1731010620865,7.35611967,76571.0,76570.0,1.25784892]
[1731010621945,7.35611967,76571.0,76570.0,1.32293776]
[1731010622163,7.35611967,76571.0,76570.0,1.76045593]
[1731010622375,7.35611967,76571.0,76570.0,1.76140901]
[1731010622588,7.35611967,76571.0,76570.0,1.59391276]
[1731010625183,7.35611967,76571.0,76570.0,1.56782276]
[1731010626207,7.35611967,76571.0,76570.0,1.74414872]
[1731010626432,7.35611967,76571.0,76570.0,1.45017372]
[1731010626643,7.35611967,76571.0,76570.0,1.31984776]
[1731010627283,7.35611967,76571.0,76570.0,1.72460076]
[1731010627492,7.35611967,76571.0,76570.0,1.68215376]
[1731010628324,7.35611967,76571.0,76570.0,1.42704976]
[1731010630861,7.19332112,76571.0,76570.0,1.42704976]
[1731010631058,7.19332112,76571.0,76570.0,1.31984776]
[1731010631264,7.19332112,76571.0,76570.0,1.66209476]
[1731010631464,7.19332112,76571.0,76570.0,1.56822776]
[1731010631877,7.19307767,76571.0,76570.0,1.56822776]
[1731010632057,7.19307767,76571.0,76570.0,1.50310676]
[1731010632511,7.19307767,76571.0,76570.0,1.31984776]
[1731010632712,7.19307767,76571.0,76570.0,1.46210676]
[1731010634341,7.19083049,76571.0,76570.0,1.46210676]
[1731010635613,7.19083049,76571.0,76570.0,1.65489776]
[1731010638288,7.19083049,76571.0,76570.0,1.78490907]
[1731010639313,7.19083049,76571.0,76570.0,1.65489776]
[1731010640146,7.19083049,76571.0,76570.0,1.68095776]
[1731010641004,7.117572,76571.0,76570.0,1.68095776]
[1731010642047,7.117572,76571.0,76570.0,1.49814576]
[1731010647294,7.117572,76571.0,76570.0,1.34590776]
[1731010647503,7.117572,76571.0,76570.0,1.52127376]
[1731010648261,7.117572,76571.0,76570.0,1.46085876]
[1731010648663,7.117572,76571.0,76570.0,1.34590776]
[1731010648891,7.117572,76571.0,76570.0,1.45356876]
[1731010649681,7.117572,76571.0,76570.0,1.60667576]
[1731010650245,7.117572,76571.0,76570.0,1.53333876]
[1731010650699,7.117572,76571.0,76570.0,1.15781892]
[1731010650959,7.04430516,76571.0,76570.0,1.15781892]
[1731010651400,7.04430516,76571.0,76570.0,1.22290776]
[1731010651606,7.04430516,76571.0,76570.0,1.55986176]
[1731010652007,7.04430516,76571.0,76570.0,1.68286176]
[1731010652452,7.04430516,76571.0,76570.0,1.76486176]
[1731010655259,7.00246218,76571.0,76570.0,1.78971688]
[1731010655631,7.00246218,76571.0,76570.0,1.76626422]
[1731010655833,7.00246218,76571.0,76570.0,1.76486176]
[1731010658024,6.97647418,76571.0,76570.0,1.76486176]
[1731010658239,6.97647418,76571.0,76570.0,1.79008946]
[1731010658240,6.962931,76571.0,76570.0,1.79008946]
[1731010658467,6.962931,76571.0,76570.0,1.83848946]
[1731010658886,6.800931,76571.0,76570.0,1.83848946]
[1731010659097,5.504931,76571.0,76570.0,1.83848946]
[1731010659721,5.342931,76571.0,76570.0,1.83848946]
[1731010659920,1.67108713,76571.0,76570.0,1.83848946]
[1731010660130,0.63574606,76571.0,76570.0,1.83848946]
[1731010660376,11.40579934,76580.0,76572.0,0.21499893]
[1731010660585,11.40579934,76580.0,76579.0,0.36420102]
[1731010660776,11.40579934,76580.0,76579.0,0.39346325]
[1731010661748,11.40579934,76580.0,76579.0,2.97838725]
[1731010661957,11.40579934,76580.0,76579.0,2.97823025]
[1731010662154,11.40579934,76580.0,76579.0,2.65397825]
[1731010665277,11.40579934,76580.0,76579.0,0.39346325]
[1731010666407,11.40579934,76580.0,76579.0,4.14688725]
[1731010666608,11.40579934,76580.0,76579.0,4.34233525]
[1731010666817,11.40579934,76580.0,76579.0,4.01846325]
[1731010667024,11.40579934,76580.0,76579.0,4.06406325]
[1731010667501,11.40579934,76580.0,76579.0,4.04303825]
[1731010667720,11.40579934,76580.0,76579.0,3.89722825]
[1731010668162,11.40579934,76580.0,76579.0,3.97892436]
[1731010668163,11.07419755,76580.0,76579.0,3.97892436]
[1731010668373,10.79055701,76580.0,76579.0,4.07942436]
[1731010668603,10.73996946,76580.0,76579.0,0.51471384]
[1731010669277,10.63311035,76580.0,76579.0,0.51471384]
[1731010669802,10.63311035,76580.0,76579.0,0.5134438]
[1731010670023,10.63311035,76580.0,76579.0,3.9037368]
[1731010670224,10.63311035,76580.0,76579.0,3.6179838]
[1731010670668,10.63311035,76580.0,76579.0,3.4380413]
[1731010670827,10.63311035,76580.0,76579.0,3.3387973]
[1731010671027,10.63311035,76580.0,76579.0,3.3166193]
[1731010671909,10.63311035,76580.0,76579.0,2.9163613]
[1731010672120,10.63311035,76580.0,76579.0,3.04577983]
[1731010672356,10.63311035,76580.0,76579.0,2.9163613]
[1731010672765,10.63311035,76580.0,76579.0,2.9171953]
[1731010673170,10.63477835,76580.0,76579.0,2.8401953]
[1731010674745,10.63477835,76580.0,76579.0,2.9401953]
[1731010677337,10.63477835,76580.0,76579.0,2.94013223]
[1731010678484,10.56154731,76580.0,76579.0,2.94013223]
[1731010679167,10.30930107,76580.0,76579.0,2.97192329]
[1731010679370,10.30930107,76580.0,76579.0,2.96626987]
[1731010679585,10.30930107,76580.0,76579.0,2.96542319]
[1731010680230,10.28324107,76580.0,76579.0,2.96626987]
[1731010680445,10.17151741,76580.0,76579.0,2.96626987]
[1731010681925,10.17151741,76580.0,76579.0,2.96087588]
[1731010682134,10.17151741,76580.0,76579.0,2.9600292]
[1731010682333,10.17151741,76580.0,76579.0,2.99406582]
[1731010682548,10.17151741,76580.0,76579.0,2.96480359]
[1731010683228,10.17151741,76580.0,76579.0,2.98780359]
[1731010683877,10.17151741,76580.0,76579.0,2.94490662]
[1731010685360,10.17151741,76580.0,76579.0,2.91087]
[1731010685554,10.17151741,76580.0,76579.0,2.91158782]
[1731010686321,9.9958178,76580.0,76579.0,2.91158782]
[1731010686542,9.9958178,76580.0,76579.0,0.34794182]
[1731010688009,9.9958178,76580.0,76579.0,4.64132082]
[1731010688375,9.07645466,76580.0,76579.0,4.41038587]
[1731010688576,8.04611867,76580.0,76579.0,4.41556671]
[1731010688781,7.35904288,76580.0,76579.0,4.037784]
[1731010688987,7.09861688,76580.0,76579.0,4.4254577]
[1731010689191,6.57776488,76580.0,76579.0,4.55470085]
[1731010689397,6.31733888,76580.0,76579.0,4.55470085]
[1731010689600,6.05691288,76580.0,76579.0,4.4254577]
[1731010689846,5.52606088,76580.0,76579.0,4.4254577]
[1731010689977,5.26563488,76580.0,76579.0,2.9146337]
[1731010690186,4.44717636,76580.0,76579.0,2.77911087]
[1731010690411,4.2994286,76580.0,76579.0,2.77911087]
[1731010690614,3.7785766,76580.0,76579.0,2.77911087]
[1731010690814,3.5081506,76580.0,76579.0,2.90835402]
[1731010691012,3.03823209,76580.0,76579.0,2.91135189]
[1731010691198,2.60671783,76580.0,76579.0,2.86409287]
[1731010691423,2.01864283,76580.0,76579.0,2.86432357]
[1731010691628,1.09696916,76580.0,76579.0,2.86432357]
[1731010691848,0.00960996,76580.0,76579.0,2.77934157]
[1731010692050,1.85072196,76600.0,76579.0,2.77934157]
[1731010692051,1.55838109,76589.0,76588.0,0.69170596]
[1731010692259,1.55838109,76589.0,76588.0,2.87903594]
[1731010692260,1.10218613,76589.0,76588.0,2.87903594]
[1731010692457,0.19592349,76598.0,76588.0,2.87903594]
[1731010692458,0.18523992,76598.0,76597.0,0.69112644]
[1731010692733,10.09819668,76599.0,76598.0,0.19139176]
[1731010692965,9.56748968,76599.0,76598.0,4.98602578]
[1731010693164,8.44709357,76599.0,76598.0,5.53830257]
[1731010693370,0.52990364,76600.0,76598.0,0.58305176]
[1731010693576,0.52850364,76600.0,76599.0,0.22092859]
[1731010693864,9.5487668,76608.0,76607.0,0.59119878]
[1731010694066,9.5487668,76608.0,76607.0,2.55509608]
[1731010694067,9.435236,76608.0,76607.0,2.55509608]
[1731010694280,8.81592994,76608.0,76607.0,2.94670608]
[1731010694483,8.71436702,76608.0,76607.0,2.94670608]
[1731010694855,6.43598969,76608.0,76607.0,2.98839579]
[1731010695062,6.21757869,76608.0,76607.0,3.11690228]
[1731010695283,4.89854792,76608.0,76607.0,8.17669679]
[1731010695532,4.86424792,76608.0,76607.0,3.91139579]
[1731010695741,3.01126641,76608.0,76607.0,3.91139579]
[1731010695942,8.98520404,76617.0,76616.0,0.59166263]
[1731010696146,7.41671747,76617.0,76616.0,4.34095261]
[1731010696351,7.3542539,76617.0,76616.0,1.66492461]
[1731010696565,6.94516948,76617.0,76616.0,1.66492461]
[1731010696806,6.94516948,76617.0,76616.0,1.7275742]
[1731010696807,5.50612739,76617.0,76616.0,1.7275742]
[1731010697012,5.08592911,76617.0,76616.0,1.7275742]
[1731010697251,2.68556424,76617.0,76616.0,1.7275742]
[1731010697502,11.13178482,76627.0,76626.0,0.59168267]
[1731010697709,10.5574724,76627.0,76626.0,6.17995097]
[1731010697960,10.5463724,76627.0,76626.0,7.17114997]
[1731010698171,10.2997085,76627.0,76626.0,6.70106097]
[1731010698399,9.54761081,76627.0,76626.0,6.70106097]
[1731010698624,8.49920381,76627.0,76626.0,6.70106097]
[1731010698823,7.71331913,76627.0,76626.0,6.73647253]
[1731010699032,7.1607071,76627.0,76626.0,7.53896639]
[1731010699254,6.85979015,76627.0,76626.0,7.50036639]
[1731010699470,5.78319968,76627.0,76626.0,4.22373139]
[1731010699683,5.53765468,76627.0,76626.0,4.22373139]
[1731010699852,4.99999187,76627.0,76626.0,7.09097353]
[1731010700097,4.1684224,76627.0,76626.0,7.06731711]
[1731010700304,4.1684224,76627.0,76626.0,3.89723139]
[1731010700305,3.67019321,76627.0,76626.0,3.89723139]
[1731010700535,2.28352337,76627.0,76626.0,3.92025842]
[1731010700741,0.75253862,76627.0,76626.0,3.89723139]
[1731010700950,10.9640633,76636.0,76635.0,0.59122426]
[1731010701166,8.6250013,76636.0,76635.0,0.88585832]
[1731010701358,8.6250013,76636.0,76635.0,1.27732832]
[1731010701564,8.5243803,76636.0,76635.0,3.93554532]
[1731010701908,7.91492054,76636.0,76635.0,3.93554532]
[1731010702119,7.91492054,76636.0,76635.0,4.05854532]
[1731010702323,7.91492054,76636.0,76635.0,4.04968642]
[1731010702556,7.91492054,76636.0,76635.0,4.27592744]
[1731010702901,7.89342054,76636.0,76635.0,6.35682474]
[1731010703114,7.89342054,76636.0,76635.0,7.15682474]
[1731010703314,7.81042029,76636.0,76635.0,7.15682474]
[1731010703803,7.76158463,76636.0,76635.0,7.18896476]
[1731010703967,7.75248463,76636.0,76635.0,7.25682474]
[1731010704418,7.6871166,76636.0,76635.0,7.28292474]
[1731010704616,7.6760166,76636.0,76635.0,7.28292474]
[1731010704778,7.6760166,76636.0,76635.0,6.20542474]
[1731010704977,7.6651166,76636.0,76635.0,6.20542474]
[1731010705196,7.6651166,76636.0,76635.0,7.18292474]
[1731010705428,7.6634166,76636.0,76635.0,7.18292474]
[1731010706062,7.6634166,76636.0,76635.0,7.28292474]
[1731010707119,7.6634166,76636.0,76635.0,6.30542474]
[1731010707327,7.6523166,76636.0,76635.0,6.30542474]
[1731010707750,7.6523166,76636.0,76635.0,6.32842474]
[1731010708197,7.6060846,76636.0,76635.0,6.32842474]
[1731010708418,7.5936846,76636.0,76635.0,6.32842474]
[1731010708830,7.56198764,76636.0,76635.0,6.32842474]
[1731010709038,7.55318764,76636.0,76635.0,6.32842474]
[1731010709438,7.47227302,76636.0,76635.0,6.32842474]
[1731010709945,7.45127092,76636.0,76635.0,6.32842474]
[1731010710140,7.36909092,76636.0,76635.0,6.32842474]
[1731010710774,7.36909092,76636.0,76635.0,7.30592474]
[1731010710775,7.29091092,76636.0,76635.0,7.30592474]
[1731010711040,7.29091092,76636.0,76635.0,7.20592474]
[1731010711246,7.26485092,76636.0,76635.0,7.20592474]
[1731010711375,7.21273092,76636.0,76635.0,7.16662474]
[1731010711559,7.12336611,76636.0,76635.0,7.16662474]
[1731010711773,7.05594498,76636.0,76635.0,7.11723068]
[1731010711975,7.02988498,76636.0,76635.0,7.11723068]
[1731010712177,7.02208498,76636.0,76635.0,7.21723068]
[1731010712381,6.96996498,76636.0,76635.0,7.24329068]
[1731010712626,6.96996498,76636.0,76635.0,7.23008768]
[1731010712627,6.92473731,76636.0,76635.0,7.23008768]
[1731010712817,6.89867731,76636.0,76635.0,7.32545168]
[1731010713063,6.87261731,76636.0,76635.0,7.29939168]
[1731010713238,6.87261731,76636.0,76635.0,7.4122141]
[1731010713239,6.86011731,76636.0,76635.0,7.4122141]
[1731010713574,6.85972672,76636.0,76635.0,7.29939168]
[1731010713777,6.83692672,76636.0,76635.0,7.29939168]
[1731010713984,6.83692672,76636.0,76635.0,7.4122141]
[1731010714418,6.80497928,76636.0,76635.0,7.4122141]
[1731010714633,6.77007928,76636.0,76635.0,7.3341641]
[1731010714888,6.77007928,76636.0,76635.0,7.22134168]
[1731010715063,6.63110964,76636.0,76635.0,7.87133816]
[1731010715269,6.31838705,76636.0,76635.0,7.81921816]
[1731010715468,6.24937851,76636.0,76635.0,7.87128916]
[1731010715673,6.15104886,76636.0,76635.0,7.84522916]
[1731010715826,6.09796316,76636.0,76635.0,7.84522916]
[1731010716025,6.06396316,76636.0,76635.0,7.84522916]
[1731010716229,5.80372976,76636.0,76635.0,7.84522916]
[1731010716471,5.80372976,76636.0,76635.0,7.95801656]
[1731010716472,5.71160431,76636.0,76635.0,7.95801656]
[1731010716618,5.01460431,76636.0,76635.0,8.49222916]
[1731010716836,4.87868631,76636.0,76635.0,8.49222916]
[1731010717048,4.82318631,76636.0,76635.0,8.49222916]
[1731010717466,4.81070698,76636.0,76635.0,8.49222916]
[1731010717687,4.76019698,76636.0,76635.0,8.49222916]
[1731010717883,4.73839972,76636.0,76635.0,8.49222916]
[1731010718125,4.70769972,76636.0,76635.0,8.49222916]
[1731010718358,4.67645687,76636.0,76635.0,8.49222916]
[1731010718552,4.56279087,76636.0,76635.0,8.49222916]
[1731010719272,4.56279087,76636.0,76635.0,8.62932916]
[1731010719488,4.47834377,76636.0,76635.0,8.49222916]
[1731010719912,4.47834377,76636.0,76635.0,5.83401216]
[1731010720118,4.47834377,76636.0,76635.0,10.91135616]
[1731010720324,4.47834377,76636.0,76635.0,10.58535616]
[1731010721211,4.47834377,76636.0,76635.0,10.58619016]
[1731010721413,4.34682401,76636.0,76635.0,10.58619016]
[1731010722027,4.18673644,76636.0,76635.0,10.58619016]
[1731010722227,4.09052771,76636.0,76635.0,10.58619016]
[1731010722433,3.75613681,76636.0,76635.0,10.58619016]
[1731010722891,3.74503681,76636.0,76635.0,10.58619016]
[1731010723099,3.44713681,76636.0,76635.0,10.58619016]
[1731010723509,3.44674624,76636.0,76635.0,10.58619016]
[1731010723729,3.43434624,76636.0,76635.0,10.58619016]
[1731010723929,3.42155858,76636.0,76635.0,9.97257316]
[1731010724107,3.40895858,76636.0,76635.0,9.91135716]
[1731010725327,3.31100314,76636.0,76635.0,10.40465354]
[1731010725492,3.31100314,76636.0,76635.0,8.45926616]
[1731010725666,3.31100314,76636.0,76635.0,8.43320616]
[1731010726221,3.31100314,76636.0,76635.0,7.73620616]
[1731010726426,3.29566641,76636.0,76635.0,7.73620616]
[1731010726626,3.29419933,76636.0,76635.0,7.73620616]
[1731010726799,3.26029933,76636.0,76635.0,7.73620616]
[1731010727015,3.26029933,76636.0,76635.0,7.85920616]
[1731010727699,3.26029933,76636.0,76635.0,7.85921895]
[1731010727830,3.26029933,76636.0,76635.0,7.73779495]
[1731010728639,3.26029933,76636.0,76635.0,7.19116595]
[1731010729570,3.14891406,76636.0,76635.0,7.17813595]
[1731010729779,3.14891406,76636.0,76635.0,6.97597485]
[1731010730208,3.10016125,76636.0,76635.0,6.97597485]
[1731010730439,3.10016125,76636.0,76635.0,6.94991485]
[1731010730904,3.17660101,76636.0,76635.0,6.73204783]
[1731010731438,3.17660101,76636.0,76635.0,6.83204783]
[1731010731725,3.15240101,76636.0,76635.0,6.85504783]
[1731010731930,3.15240101,76636.0,76635.0,6.69308783]
[1731010732137,3.20040101,76636.0,76635.0,3.96466183]
[1731010732347,3.20040101,76636.0,76635.0,3.58614183]
[1731010732548,3.20040101,76636.0,76635.0,3.38476783]
[1731010733885,3.20040101,76636.0,76635.0,3.3910477]
[1731010734092,3.12888093,76636.0,76635.0,2.81114353]
[1731010734271,3.12888093,76636.0,76635.0,2.97963649]
[1731010734475,3.12888093,76636.0,76635.0,3.00263649]
[1731010734632,3.11612236,76636.0,76635.0,3.22560353]
[1731010734808,3.11612236,76636.0,76635.0,3.78763397]
[1731010735141,3.08947673,76636.0,76635.0,4.58763397]
[1731010735340,3.08302134,76636.0,76635.0,4.58763397]
[1731010736556,3.08302134,76636.0,76635.0,4.71987499]
[1731010736784,2.95832134,76636.0,76635.0,4.58763397]
[1731010737015,2.95832134,76636.0,76635.0,3.74237499]
[1731010738970,2.91835467,76636.0,76635.0,3.74237499]
[1731010739569,2.84522109,76636.0,76635.0,3.74237499]
[1731010739978,2.84402109,76636.0,76635.0,3.74237499]
[1731010740374,2.84402109,76636.0,76635.0,3.04810353]
[1731010740916,2.84402109,76636.0,76635.0,3.02510353]
[1731010741140,2.84402109,76636.0,76635.0,2.92510353]
[1731010741355,2.96602109,76636.0,76635.0,2.92510353]
[1731010742117,2.96602109,76636.0,76635.0,2.12510353]
[1731010742348,2.96602109,76636.0,76635.0,2.20461453]
[1731010742705,2.96602109,76636.0,76635.0,2.13591853]
[1731010743666,2.96602109,76636.0,76635.0,2.23591853]
[1731010744339,3.09826211,76636.0,76635.0,2.23591853]
[1731010744552,3.09826211,76636.0,76635.0,1.94912606]
[1731010745249,3.09826211,76636.0,76635.0,2.00123006]
[1731010745503,3.09826211,76636.0,76635.0,1.87313006]
[1731010746006,3.10326211,76636.0,76635.0,1.61776406]
[1731010747250,3.10326211,76636.0,76635.0,1.71776406]
[1731010748099,2.98126211,76636.0,76635.0,1.55856406]
[1731010748330,2.98126211,76636.0,76635.0,1.50646006]
[1731010748580,2.98126211,76636.0,76635.0,1.49443756]
[1731010748803,2.98126211,76636.0,76635.0,1.4808159]
[1731010749022,2.98126211,76636.0,76635.0,1.7339908]
[1731010749237,2.98126211,76636.0,76635.0,1.68312583]
[1731010749929,2.98126211,76636.0,76635.0,0.91892733]
[1731010750174,2.98626211,76636.0,76635.0,0.34668948]
[1731010750416,2.98626211,76636.0,76635.0,0.30071638]
[1731010751324,2.98626211,76636.0,76635.0,0.40071638]
[1731010751550,2.98626211,76636.0,76635.0,0.16682435]
[1731010752212,0.01,76631.0,76630.0,0.1]
[1731010752471,0.13724102,76631.0,76630.0,0.16586425]
[1731010752707,0.07188261,76631.0,76630.0,0.16586425]
[1731010753779,0.07188261,76631.0,76627.0,0.16547817]
[1731010753998,0.13224102,76630.0,76627.0,0.16547817]
[1731010754224,0.13224102,76630.0,76628.0,0.00072756]
[1731010754423,0.13224102,76630.0,76629.0,0.0659274]
[1731010754635,0.13224102,76630.0,76628.0,0.06513533]
[1731010755495,0.0741323,76630.0,76628.0,0.06513533]
[1731010755699,0.0741323,76630.0,76629.0,0.1659274]
[1731010755700,0.04336101,76630.0,76629.0,0.1659274]
[1731010756025,0.04336101,76630.0,76629.0,0.29478189]
[1731010756442,0.04336101,76630.0,76629.0,0.1659274]
[1731010756832,0.04336101,76630.0,76629.0,0.2074936]
[1731010757236,0.04336101,76630.0,76629.0,0.1659274]
[1731010757689,0.04336101,76630.0,76629.0,0.0659274]
[1731010757887,0.04336101,76630.0,76629.0,0.6659274]
[1731010758758,2.84402109,76636.0,76635.0,0.09192426]
[1731010758759,2.59402109,76636.0,76635.0,0.09192426]
[1731010758958,2.59402109,76636.0,76635.0,0.74693353]
[1731010759180,2.59402109,76636.0,76635.0,0.81913353]
[1731010759375,2.59282109,76636.0,76635.0,0.81913353]
[1731010759528,2.59282109,76636.0,76635.0,1.29613353]
[1731010759739,2.59282109,76636.0,76635.0,1.78247753]
[1731010760171,2.56676109,76636.0,76635.0,1.78247753]
[1731010760576,2.56676109,76636.0,76635.0,1.73853353]
[1731010760939,2.56676109,76636.0,76635.0,1.84353353]
[1731010761148,2.56676109,76636.0,76635.0,1.86653353]
[1731010762710,2.56676109,76636.0,76635.0,1.84353353]
[1731010763015,2.69900211,76636.0,76635.0,1.73853353]
[1731010763219,2.69900211,76636.0,76635.0,1.24193353]
[1731010764026,2.69900211,76636.0,76635.0,1.15196205]
[1731010764590,2.69900211,76636.0,76635.0,1.25196205]
[1731010764767,2.69900211,76636.0,76635.0,0.62606]
[1731010764968,2.69900211,76636.0,76635.0,0.52606]
[1731010765289,2.70400211,76636.0,76635.0,0.52606]
[1731010765699,2.70400211,76636.0,76628.0,0.06591105]
[1731010765700,0.01,76632.0,76628.0,0.06591105]
[1731010765912,0.13651348,76629.0,76628.0,0.06591105]
[1731010766246,0.14651348,76629.0,76628.0,0.06591105]
[1731010767078,0.13224102,76629.0,76628.0,0.06591105]
[1731010767565,0.14151348,76629.0,76628.0,0.06591105]
[1731010768705,0.14151348,76629.0,76628.0,0.16591105]
[1731010768929,0.14651348,76629.0,76628.0,0.16591105]
[1731010769353,0.09615165,76629.0,76628.0,0.16591105]
[1731010769992,0.09615165,76629.0,76628.0,0.06591105]
[1731010770417,0.01427246,76628.0,76627.0,0.06629356]
[1731010770646,0.14651348,76628.0,76627.0,0.16629356]
[1731010771577,0.07334061,76628.0,76627.0,0.16629356]
[1731010771798,0.07334061,76628.0,76627.0,0.06629356]
[1731010774244,0.07334061,76628.0,76627.0,0.29531037]
[1731010774459,0.07334061,76628.0,76627.0,0.16629356]
[1731010775215,0.07334061,76628.0,76627.0,1.14541456]
[1731010775446,0.19592349,76635.0,76634.0,0.66571456]
[1731010775787,0.32816451,76635.0,76634.0,0.66571456]
[1731010776136,0.13224102,76635.0,76634.0,0.66571456]
[1731010776330,0.32816451,76635.0,76634.0,0.66571456]
[1731010776537,0.13224102,76635.0,76634.0,0.7948139]
[1731010776753,0.13224102,76635.0,76634.0,0.66571456]
[1731010780368,0.04514406,76635.0,76634.0,0.69177456]
[1731010780580,1.33199711,76636.0,76634.0,0.69177456]
[1731010780709,1.28542584,76636.0,76635.0,0.19131558]
[1731010780909,0.52247672,76636.0,76635.0,0.19631558]
[1731010781108,11.27159617,76664.0,76643.0,0.59177291]
[1731010781109,0.09730531,76644.0,76643.0,0.59177291]
[1731010781310,10.84607906,76645.0,76644.0,0.12606]
[1731010781725,10.80751098,76645.0,76644.0,0.17560425]
[1731010781888,10.8772832,76645.0,76644.0,0.17560425]
[1731010785003,10.8772832,76645.0,76644.0,0.09115331]
[1731010785176,10.8772832,76645.0,76644.0,0.02606]
[1731010785380,10.8772832,76645.0,76644.0,0.0918855]
[1731010790247,10.8772832,76645.0,76644.0,0.1918855]
[1731010790703,10.8822832,76645.0,76644.0,0.1658255]
[1731010790907,10.8872832,76645.0,76644.0,0.1658255]
[1731010791435,10.8872832,76645.0,76644.0,0.0658255]
[1731010791598,10.814116,76645.0,76644.0,0.0658255]
[1731010792823,10.814116,76645.0,76644.0,0.06593352]
[1731010793031,0.01,76636.0,76635.0,0.09150926]
[1731010793224,0.14224102,76636.0,76635.0,0.09150926]
[1731010793974,0.01,76630.0,76629.0,0.06654478]
[1731010794194,0.01,76630.0,76627.0,0.06641188]
[1731010794195,0.01,76628.0,76627.0,0.06641188]
[1731010794398,0.14224102,76628.0,76627.0,0.09247188]
[1731010799800,0.01,76625.0,76624.0,0.09140114]
[1731010799937,0.14224102,76625.0,76624.0,0.09140114]
[1731010800350,0.13224102,76625.0,76624.0,0.09140114]
[1731010800584,0.12363033,76625.0,76624.0,0.09140114]
[1731010800795,0.01699001,76632.0,76626.0,0.02606]
[1731010800993,0.01699001,76632.0,76627.0,0.09204065]
[1731010801789,0.19592349,76644.0,76627.0,0.09204065]
[1731010802017,0.19592349,76636.0,76631.0,0.02606]
[1731010802229,0.19592349,76636.0,76630.0,0.06573059]
[1731010802230,0.19592349,76636.0,76634.0,0.09179203]
[1731010802411,0.19592349,76644.0,76634.0,0.09179203]
[1731010802976,0.023,76643.0,76634.0,0.09179203]
[1731010803805,0.19592349,76644.0,76634.0,0.09179203]
[1731010804102,0.19592349,76644.0,76635.0,0.06588967]
[1731010805132,0.19592349,76644.0,76635.0,0.09194967]
[1731010806103,0.001668,76643.0,76642.0,0.1]
[1731010806305,0.001668,76643.0,76642.0,0.19155945]
[1731010807380,0.001668,76643.0,76642.0,0.22697069]
[1731010807582,0.001668,76643.0,76642.0,0.02606]
[1731010807583,0.13390902,76643.0,76642.0,0.02606]
[1731010807785,0.13390902,76643.0,76625.0,0.0777405]
[1731010807786,0.023,76642.0,76635.0,0.06588967]
[1731010807983,0.023,76642.0,76625.0,0.0022405]
[1731010807984,0.023,76635.0,76628.0,0.06590077]
[1731010808182,0.13224102,76629.0,76623.0,0.0274668]
[1731010808389,0.12595698,76628.0,76627.0,0.06606743]
[1731010809007,0.12595698,76628.0,76627.0,0.21833735]
[1731010809211,0.001668,76643.0,76629.0,0.09138924]
[1731010809212,0.19592349,76636.0,76629.0,0.09138924]
[1731010809465,0.32816451,76635.0,76629.0,0.09138924]
[1731010809657,0.13224102,76635.0,76629.0,0.09138924]
[1731010809862,0.19592349,76634.0,76629.0,0.19138924]
[1731010810238,0.13224102,76635.0,76629.0,0.19138924]